fUSD/lending_fUSD_20251206
["ID","MTS","AMOUNT","RATE_DAILY","PERIOD"]
[396510813,1765021203860,268.0,0.00014335,2]
[396510815,1765021206165,-175.2123444,0.00014335,2]
[396510816,1765021209487,-339.31090162,0.00014335,2]
[396510817,1765021212040,-345.35115755,0.00014335,2]
[396510818,1765021213142,-184.19305398,0.00014335,2]
[396510819,1765021215189,-222.30237251,0.00014335,2]
[396510820,1765021216762,-314.90296537,0.00014335,2]
[396510822,1765021220526,-203.2668536,0.00014335,2]
[396510823,1765021223280,-497.02224169,0.00014335,2]
[396510824,1765021225450,-242.06209982,0.00014335,2]
[396510825,1765021229254,-179.1198836,0.00014335,2]
[396510826,1765021231765,-500.0,0.00014335,2]
[396510827,1765021235089,-516.63433525,0.00014335,2]
[396510828,1765021237086,-211.09468319,0.00014335,2]
[396510829,1765021238637,-304.82607904,0.00014335,2]
[396510831,1765021240280,-277.90407993,0.00014335,2]
[396510832,1765021244810,-233.17537175,0.00014335,2]
[396510833,1765021247291,-530.80113346,0.00014335,2]
[396510834,1765021248914,-321.19545374,0.00014335,2]
[396510835,1765021252257,-192.32018216,0.00014335,2]
[396510836,1765021254377,-364.03399507,0.00014335,2]
[396510837,1765021257266,-168.61783143,0.00014335,2]
[396510838,1765021259522,-189.06448687,0.00014335,2]
[396510839,1765021261043,-163.39829817,0.00014335,2]
[396510840,1765021261624,300.0,0.00014334,2]
[396510843,1765021262574,-410.98113856,0.00014335,2]
[396510844,1765021264829,-167.43040342,0.00014335,2]
[396510845,1765021269379,-207.84704889,0.00014335,2]
[396510846,1765021271305,-246.88643133,0.00014335,2]
[396510847,1765021273969,-311.44448877,0.00014335,2]
[396510848,1765021276798,-409.51644707,0.00014335,2]
[396510850,1765021278599,-299.0037605,0.00014335,2]
[396510851,1765021280823,-170.77752617,0.00014335,2]
[396510852,1765021284531,-438.81961314,0.00014335,2]
[396510854,1765021286135,-266.165,0.00014335,2]
[396510855,1765021289207,-183.66164507,0.00014335,2]
[396510856,1765021292496,-219.08649978,0.00014335,2]
[396510857,1765021293142,1823.729,0.00014049,2]
[396510858,1765021293264,170.066,0.00014049,2]
[396510859,1765021294050,-158.64459225,0.00014335,2]
[396510860,1765021297811,-189.24141489,0.00014335,2]
[396510861,1765021299414,-377.22527986,0.00014335,2]
[396510863,1765021302129,-409.40194065,0.00014335,2]
[396510864,1765021302414,500.0,0.00014335,2]
[396510865,1765021302628,500.0,0.00014335,2]
[396510866,1765021303648,-290.59023546,0.00014335,2]
[396510867,1765021306939,2070.78614259,0.00014235,2]
[396510868,1765021306964,8016.3722955,0.00014235,2]
[396510869,1765021308156,-168.79,0.00014335,2]
[396510871,1765021310450,-212.14699366,0.00014335,2]
[396510872,1765021312082,-325.05620324,0.00014335,2]
[396510873,1765021316667,-190.30420666,0.00014335,2]
[396510874,1765021316873,542.39133865,0.00014335,2]
[396510875,1765021318446,500.0,0.00014334,2]
[396510876,1765021318485,500.0,0.00014334,2]
[396510877,1765021318523,441.24636585,0.00014334,2]
[396510878,1765021318547,58.75363415,0.00014334,2]
[396510879,1765021318585,500.0,0.00014334,2]
[396510880,1765021318627,552.81684804,0.00014334,2]
[396510881,1765021318837,-185.59136797,0.00014335,2]
[396510882,1765021320461,-219.80371756,0.00014335,2]
[396510883,1765021321388,500.0,0.00014334,2]
[396510884,1765021322080,300.0,0.00014334,2]
[396510885,1765021322748,-674.38016308,0.00014335,2]
[396510886,1765021324227,150.0,0.00014334,2]
[396510887,1765021324717,-254.88870554,0.00014335,2]
[396510889,1765021327884,-363.11935683,0.00014335,2]
[396510890,1765021328805,151.0,0.00014335,2]
[396510891,1765021329405,151.0,0.00014335,2]
[396510892,1765021329998,151.0,0.00014335,2]
[396510893,1765021332256,500.0,0.00014334,2]
[396510894,1765021332308,500.0,0.00014334,2]
[396510895,1765021332367,350.0,0.00014334,2]
[396510896,1765021332459,-277.41700354,0.00014335,2]
[396510898,1765021333753,200.0,0.00014335,2]
[396510899,1765021334613,-232.68572867,0.00014335,2]
[396510900,1765021336225,-472.20225941,0.00014335,2]
[396510901,1765021339807,500.0,0.00014335,2]
[396510902,1765021340430,500.0,0.00014335,2]
[396510903,1765021340483,-474.83166038,0.00014335,2]
[396510904,1765021341042,284.9262,0.00014335,2]
[396510905,1765021342693,-188.95444645,0.00014335,2]
[396510906,1765021344062,200.0,0.00014335,2]
[396510907,1765021344466,-214.13623566,0.00014335,2]
[396510908,1765021345750,151.0,0.00014335,2]
[396510909,1765021346388,151.0,0.00014335,2]
[396510910,1765021347513,151.0,0.00014335,2]
[396510911,1765021348159,151.0,0.00014335,2]
[396510913,1765021349891,-221.24149237,0.00014335,2]
[396510914,1765021350430,151.0,0.00014335,2]
[396510915,1765021351024,151.0,0.00014335,2]
[396510916,1765021351627,151.0,0.00014335,2]
[396510917,1765021352064,-195.08025111,0.00014335,2]
[396510918,1765021352210,163.61,0.000143,2]
[396510919,1765021352266,151.0,0.00014335,2]
[396510920,1765021352722,503.93214837,0.00014335,2]
[396510921,1765021352901,151.0,0.00014335,2]
[396510922,1765021353514,151.0,0.00014335,2]
[396510923,1765021353740,-274.7876556,0.00014335,2]
[396510924,1765021354572,151.0,0.00014335,2]
[396510925,1765021355794,-205.7088069,0.00014335,2]
[396510927,1765021357321,-303.55737173,0.00014335,2]
[396510928,1765021359920,-201.24982805,0.00014335,2]
[396510929,1765021361412,-202.46633514,0.00014335,2]
[396510930,1765021362835,-232.63401562,0.00014335,2]
[396510931,1765021365482,-234.94613277,0.00014335,2]
[396510932,1765021368889,-212.04450742,0.00014335,2]
[396510934,1765021372279,2121.97116944,0.00014334,2]
[396510935,1765021372304,7394.62883056,0.00014334,2]
[396510936,1765021372822,-309.2407181,0.00014335,2]
[396510937,1765021375640,-437.64522149,0.00014335,2]
[396510938,1765021376607,1200.0,0.00014334,2]
[396510940,1765021381126,-250.0,0.00014335,2]
[396510941,1765021381387,300.0,0.00014334,2]
[396510942,1765021382634,-212.56479553,0.00014335,2]
[396510943,1765021383873,235.463,0.00014235,2]
[396510944,1765021384750,-238.26276826,0.00014335,2]
[396510945,1765021388973,-247.79217159,0.00014335,2]
[396510946,1765021392653,-192.76351544,0.00014335,2]
[396510948,1765021396450,-337.18325901,0.00014335,2]
[396510949,1765021399226,-168.35757804,0.00014335,2]
[396510950,1765021401915,-238.11605516,0.00014335,2]
[396510952,1765021402658,869.91816944,0.00014263,2]
[396510953,1765021402680,1602.71486856,0.00014263,2]
[396510954,1765021404646,-448.02499735,0.00014335,2]
[396510955,1765021406389,-285.20550173,0.00014335,2]
[396510956,1765021407996,-445.38267555,0.00014335,2]
[396510957,1765021411703,-265.47540185,0.00014335,2]
[396510958,1765021413843,-305.6556076,0.00014335,2]
[396510959,1765021415358,-202.39950006,0.00014335,2]
[396510961,1765021420703,-164.37742808,0.00014335,2]
[396510962,1765021423420,-256.92243837,0.00014335,2]
[396510963,1765021425617,-186.208719,0.00014335,2]
[396510965,1765021429352,-204.60499598,0.00014335,2]
[396510966,1765021430966,-272.32229199,0.00014335,2]
[396510967,1765021432589,1000.0,0.00014235,2]
[396510968,1765021432777,-338.05361481,0.00014335,2]
[396510969,1765021434899,-285.39753864,0.00014335,2]
[396510970,1765021436304,-153.31782687,0.00014335,2]
[396510971,1765021438548,-177.27,0.00014335,2]
[396510972,1765021440812,-198.1639605,0.00014335,2]
[396510974,1765021442627,-160.90118041,0.00014335,2]
[396510975,1765021444069,-182.54369777,0.00014335,2]
[396510976,1765021447413,-294.56710426,0.00014335,2]
[396510978,1765021451661,-175.70786457,0.00014335,2]
[396510979,1765021454526,-277.54566819,0.00014335,2]
[396510980,1765021459830,-191.70548187,0.00014335,2]
[396510981,1765021461854,-505.6703768,0.00014335,2]
[396510983,1765021465150,-157.90268983,0.00014335,2]
[396510984,1765021465656,1000.0,0.00014192,2]
[396510985,1765021467692,-316.72671855,0.00014335,2]
[396510986,1765021469241,-307.95153014,0.00014335,2]
[396510987,1765021471928,-527.57765053,0.00014335,2]
[396510989,1765021474708,-257.38219419,0.00014335,2]
[396510990,1765021475467,500.0,0.00014334,2]
[396510991,1765021475510,500.00000001,0.00014334,2]
[396510992,1765021476740,2500.0,0.00014235,2]
[396510993,1765021478027,-350.07233169,0.00014335,2]
[396510994,1765021480044,-275.59129947,0.00014335,2]
[396510995,1765021484606,-168.79,0.00014335,2]
[396510996,1765021486646,-281.8735946,0.00014335,2]
[396510998,1765021492155,-170.15575546,0.00014335,2]
[396510999,1765021492960,500.0,0.00014334,2]
[396511000,1765021493015,500.0,0.00014334,2]
[396511001,1765021493081,195.90506445,0.00014334,2]
[396511002,1765021493232,500.0,0.00014334,2]
[396511003,1765021494112,-242.22332319,0.00014335,2]
[396511005,1765021495747,-297.18916507,0.00014335,2]
[396511006,1765021497826,-250.04532576,0.00014335,2]
[396511007,1765021500062,-500.0091281,0.00014335,2]
[396511008,1765021501294,300.0,0.00014334,2]
[396511009,1765021501335,300.0,0.00014334,2]
[396511010,1765021501406,601.39006698,0.00014334,2]
[396511011,1765021501430,598.60993302,0.00014334,2]
[396511012,1765021501713,-503.72178989,0.00014335,2]
[396511013,1765021503640,150.0,0.00014334,2]
[396511014,1765021503884,-166.66,0.00014335,2]
[396511015,1765021506002,-237.93196114,0.00014335,2]
[396511016,1765021508918,-540.56864841,0.00014335,2]
[396511018,1765021513471,-210.93645196,0.00014335,2]
[396511019,1765021514956,-332.31856506,0.00014335,2]
[396511020,1765021516531,-227.18554992,0.00014335,2]
[396511021,1765021518215,-467.4912232,0.00014335,2]
[396511023,1765021520043,-305.73905127,0.00014335,2]
[396511024,1765021521593,-174.0,0.00014335,2]
[396511025,1765021522703,9251.40006698,0.00014235,2]
[396511026,1765021522727,624.0645341,0.00014235,2]
[396511027,1765021523869,166.66,0.00013699,2]
[396511028,1765021524079,166.66,0.00013922,2]
[396511029,1765021524279,166.66,0.00014145,2]
[396511030,1765021525090,-334.1662362,0.00014335,2]
[396511031,1765021526623,-154.99903607,0.00014335,2]
[396511032,1765021528366,-229.62145208,0.00014335,2]
[396511033,1765021531929,-306.83557542,0.00014335,2]
[396511034,1765021534677,-405.93948708,0.00014335,2]
[396511036,1765021536718,-345.95812001,0.00014335,2]
[396511037,1765021539055,-421.06605408,0.00014335,2]
[396511038,1765021540525,-211.52983117,0.00014335,2]
[396511039,1765021542977,-298.72013057,0.00014335,2]
[396511041,1765021548602,-264.58696209,0.00014335,2]
[396511042,1765021550425,-171.59237931,0.00014335,2]
[396511043,1765021556658,-167.5883771,0.00014335,2]
[396511044,1765021558622,-321.53,0.00014335,2]
[396511046,1765021561829,-250.42289508,0.00014335,2]
[396511048,1765021566952,957.0,0.00015,5]
[396511049,1765021567045,-271.42053813,0.00014335,2]
[396511050,1765021568522,-748.67669582,0.00014335,2]
[396511051,1765021570588,-214.29268096,0.00014335,2]
[396511052,1765021572677,-334.86645794,0.00014335,2]
[396511053,1765021574006,-403.99664958,0.00014335,2]
[396511054,1765021580055,-183.73630912,0.00014335,2]
[396511055,1765021581552,-199.45,0.00014335,2]
[396511057,1765021583011,-169.47376315,0.00014335,2]
[396511059,1765021601864,-300.0,0.00014335,2]
[396511060,1765021604734,-324.45510884,0.00014335,2]
[396511062,1765021606350,-180.49117804,0.00014335,2]
[396511063,1765021610362,-227.77791142,0.00014335,2]
[396511064,1765021612030,-266.83913473,0.00014335,2]
[396511066,1765021621657,300.0,0.00014334,2]
[396511067,1765021626020,200.0,0.00014335,2]
[396511069,1765021632933,354.0393404,0.00014235,2]
[396511070,1765021634294,201.32298322,0.00014335,2]
[396511071,1765021634516,2009.4545,0.00014235,2]
[396511072,1765021636813,151.0,0.00014335,2]
[396511073,1765021637199,151.0,0.00014335,2]
[396511075,1765021640631,-500.0,0.00014335,2]
[396511076,1765021640661,-500.0,0.00014335,2]
[396511077,1765021640691,-151.0,0.00014335,2]
[396511078,1765021640719,-151.0,0.00014335,2]
[396511079,1765021640748,-151.0,0.00014335,2]
[396511080,1765021640778,-151.0,0.00014335,2]
[396511081,1765021640807,-151.0,0.00014335,2]
[396511082,1765021641446,-151.0,0.00014335,2]
[396511083,1765021641892,-151.0,0.00014335,2]
[396511084,1765021643411,-151.0,0.00014335,2]
[396511085,1765021643440,-151.0,0.00014335,2]
[396511086,1765021647618,-4394.66461683,0.00014335,2]
[396511087,1765021647777,-10000.01,0.00014335,2]
[396511088,1765021649540,-10000.01,0.00014335,2]
[396511089,1765021649672,-10000.01,0.00014335,2]
[396511090,1765021649763,-10000.01,0.00014335,2]
[396511091,1765021649876,-10000.01,0.00014335,2]
[396511092,1765021650011,-10000.01,0.00014335,2]
[396511093,1765021651089,-10000.01,0.00014335,2]
[396511094,1765021651256,-10000.01,0.00014335,2]
[396511095,1765021651588,-10000.01,0.00014335,2]
[396511099,1765021683685,150.0,0.00014334,2]
[396511101,1765021692444,-416.53052725,0.00014335,2]
[396511102,1765021692826,9722.60098943,0.00014235,2]
[396511103,1765021693885,-215.0738,0.00014335,2]
[396511104,1765021696045,-322.05732119,0.00014335,2]
[396511105,1765021698303,-308.03318091,0.00014335,2]
[396511108,1765021704081,127.40901057,0.00014335,2]
[396511109,1765021704104,380.28928535,0.00014335,2]
[396511113,1765021736850,-232.31,0.00014335,2]
[396511114,1765021740848,-162.175406,0.00014335,2]
[396511115,1765021741508,300.0,0.00014334,2]
[396511116,1765021742856,-632.78772076,0.00014335,2]
[396511118,1765021746125,-162.175406,0.00014335,2]
[396511120,1765021749968,-233.32285711,0.00014335,2]
[396511121,1765021754119,-241.32,0.00014335,2]
[396511123,1765021757395,-182.04773697,0.00014335,2]
[396511124,1765021759541,-500.05747964,0.00014335,2]
[396511125,1765021762525,-182.46438961,0.00014335,2]
[396511128,1765021780539,214.48447579,0.00014235,2]
[396511129,1765021782939,9105.23623886,0.00014235,2]
[396511130,1765021782963,10000.01,0.00014235,2]
[396511131,1765021782990,10000.01,0.00014235,2]
[396511132,1765021783015,10000.01,0.00014235,2]
[396511133,1765021783039,10000.01,0.00014235,2]
[396511134,1765021783062,10000.01,0.00014235,2]
[396511135,1765021783086,10000.01,0.00014235,2]
[396511136,1765021783111,10000.01,0.00014235,2]
[396511137,1765021783136,10000.01,0.00014235,2]
[396511138,1765021783160,10000.01,0.00014235,2]
[396511139,1765021783722,-200.05410493,0.00014235,2]
[396511140,1765021785786,-490.31482809,0.00014235,2]
[396511141,1765021787365,-181.61335848,0.00014235,2]
[396511142,1765021790002,-619.03414726,0.00014235,2]
[396511143,1765021792642,-361.80776812,0.00014235,2]
[396511144,1765021794702,-199.99670706,0.00014235,2]
[396511145,1765021798657,-270.81762869,0.00014235,2]
[396511146,1765021800846,-237.17074262,0.00014235,2]
[396511147,1765021801143,10000.01,0.00013781,2]
[396511148,1765021801165,523.55,0.00013781,2]
[396511149,1765021801443,300.0,0.00014234,2]
[396511150,1765021801501,300.0,0.00014234,2]
[396511151,1765021801537,1200.0,0.00014234,2]
[396511153,1765021803311,-205.37880987,0.00014235,2]
[396511154,1765021803862,268.0,0.00014235,2]
[396511155,1765021805901,-386.46174827,0.00014235,2]
[396511156,1765021808303,-242.16913355,0.00014235,2]
[396511157,1765021809861,-228.07085918,0.00014235,2]
[396511158,1765021814043,-250.0,0.00014235,2]
[396511168,1765021831488,-1037.1543125,0.00014235,2]
[396511172,1765021831583,-5069.62262679,0.00014235,2]
[396511173,1765021831599,-15450.65675534,0.00014235,2]
[396511174,1765021831619,-55351.13314346,0.00014235,2]
[396511175,1765021831684,-4573.2,0.00014235,2]
[396511176,1765021831740,-264.5794,0.00014235,2]
[396511270,1765021837600,-642.76071279,0.00014235,2]
[396511271,1765021837760,-581.85001087,0.00014235,2]
[396511272,1765021837772,-1134.22,0.00014235,2]
[396511273,1765021837813,-2599.2222353,0.00014235,2]
[396511279,1765021839652,-570317.38472797,0.00014235,2]
[396511280,1765021839663,-500.0,0.00014335,2]
[396511281,1765021839673,-500.0,0.00014335,2]
[396511282,1765021839683,-500.0,0.00014335,2]
[396511283,1765021839695,-500.0,0.00014335,2]
[396511284,1765021839706,-1000.0,0.00014335,2]
[396511285,1765021839716,-250.0,0.00014338,2]
[396511286,1765021839726,-300.0,0.00014342,2]
[396511287,1765021839737,-250.0,0.00014347,2]
[396511288,1765021839747,-530.41,0.00014349,2]
[396511289,1765021839757,-169.47376315,0.00014359,2]
[396511290,1765021839767,-166.66,0.00014369,2]
[396511291,1765021839777,-500.0,0.00014395,3]
[396511292,1765021839792,-708.79,0.00014523,2]
[396511293,1765021839802,-500.0,0.00014535,2]
[396511294,1765021839813,-500.0,0.00014535,2]
[396511295,1765021839822,-468.9517815,0.00014535,2]
[396511296,1765021839833,-506.09206684,0.00014535,2]
[396511297,1765021839843,-501.19138157,0.00014535,2]
[396511298,1765021839852,-500.0,0.00014535,2]
[396511299,1765021839864,-500.0,0.00014535,2]
[396511300,1765021839875,-500.0,0.00014535,2]
[396511301,1765021839885,-503.38985628,0.00014535,2]
[396511302,1765021839895,-500.0,0.00014535,2]
[396511303,1765021839905,-500.0,0.00014535,2]
[396511304,1765021839915,-500.0,0.00014535,2]
[396511305,1765021839925,-553.84939319,0.00014535,2]
[396511306,1765021839934,-500.0,0.00014535,2]
[396511307,1765021839945,-500.0,0.00014535,2]
[396511308,1765021839955,-500.0,0.00014535,2]
[396511309,1765021839966,-500.0,0.00014535,2]
[396511310,1765021839976,-506.24410093,0.00014535,2]
[396511311,1765021839990,-500.0,0.00014535,2]
[396511312,1765021840000,-500.0,0.00014535,2]
[396511313,1765021840011,-500.0,0.00014535,2]
[396511314,1765021840021,-500.0,0.00014535,2]
[396511315,1765021840031,-500.0,0.00014535,2]
[396511316,1765021840041,-500.0,0.00014535,2]
[396511317,1765021840051,-500.0,0.00014535,2]
[396511318,1765021840061,-500.0,0.00014535,2]
[396511319,1765021840072,-500.0,0.00014535,2]
[396511320,1765021840082,-500.0,0.00014535,2]
[396511321,1765021840091,-500.0,0.00014535,2]
[396511323,1765021840101,-629.18828695,0.00014535,2]
[396511325,1765021840111,-1116.61,0.00014535,2]
[396511326,1765021840120,-200.0,0.00014567,2]
[396511327,1765021840131,-6885.53,0.00014567,2]
[396511329,1765021840141,-166.66,0.00014592,2]
[396511331,1765021840151,-2068.49,0.0001463,2]
[396511333,1765021840161,-1000.0,0.00014634,2]
[396511334,1765021840171,-500.0,0.00014641,2]
[396511335,1765021840181,-502.41193472,0.00014641,2]
[396511336,1765021840195,-65089.0,0.00014642,2]
[396511337,1765021840204,-1458.8,0.00014642,2]
[396511338,1765021840214,-9875.46460108,0.00014642,2]
[396511339,1765021840223,-9722.60098937,0.00014642,2]
[396511340,1765021840233,-1798.84601219,0.00014668,2]
[396511341,1765021840243,-181.0,0.00014751,2]
[396511342,1765021840253,-354.03934034,0.00014759,2]
[396511343,1765021840263,-37825.08046718,0.00014768,2]
[396511344,1765021840274,-9999.99,0.00014768,2]
[396511345,1765021840284,-999.99,0.00014768,2]
[396511346,1765021840294,-299.99,0.00014768,2]
[396511347,1765021840305,-150.99,0.00014768,2]
[396511348,1765021840316,-3798.63,0.00014768,2]
[396511349,1765021840326,-270.23,0.00014768,2]
[396511350,1765021840337,-150.99,0.00014768,2]
[396511351,1765021840347,-1926.14,0.00014768,2]
[396511352,1765021840356,-9999.99,0.00014768,2]
[396511353,1765021840365,-758.21,0.00014768,2]
[396511354,1765021840375,-9999.99,0.00014768,2]
[396511355,1765021840386,-910.0,0.00014771,2]
[396511356,1765021840395,-1116.61,0.00014809,2]
[396511357,1765021840405,-166.66,0.00014815,2]
[396511358,1765021840415,-201.67121369,0.00014883,2]
[396511359,1765021840424,-511.45641442,0.00014899,2]
[396511360,1765021840544,-500.0,0.00014899,2]
[396511361,1765021840554,-500.0,0.00014899,2]
[396511362,1765021840563,-500.0,0.00014899,2]
[396511363,1765021840573,-500.0,0.00014899,2]
[396511364,1765021840583,-500.0,0.00014899,2]
[396511365,1765021840593,-226.10786118,0.000149,2]
[396511366,1765021840603,-1852.42,0.00014926,2]
[396511367,1765021840612,-422.0,0.0001493,2]
[396511368,1765021840622,-165.33,0.00014996,2]
[396511369,1765021840631,-1000.0,0.00014999,3]
[396511370,1765021840641,-203.7,0.00015,2]
[396511371,1765021840650,-1788.0,0.00015011,2]
[396511372,1765021840659,-3251.97,0.00015031,2]
[396511373,1765021840668,-2068.49,0.00015036,2]
[396511374,1765021840677,-990.0,0.00015044,2]
[396511375,1765021840686,-9875.46460108,0.00015049,2]
[396511376,1765021840695,-9722.60098937,0.00015049,2]
[396511377,1765021840704,-1116.61,0.00015083,2]
[396511378,1765021840713,-431.0,0.00015107,2]
[396511379,1765021840723,-354.03934034,0.00015282,2]
[396511380,1765021840743,-1798.84601219,0.00015284,2]
[396511381,1765021840753,-150.0,0.00015288,2]
[396511382,1765021840763,-150.0,0.00015288,2]
[396511383,1765021840773,-150.0,0.00015288,2]
[396511384,1765021840784,-150.0,0.00015288,2]
[396511385,1765021840794,-150.0,0.00015288,2]
[396511386,1765021840805,-150.0,0.00015288,2]
[396511387,1765021840816,-150.0,0.00015288,2]
[396511388,1765021840825,-150.0,0.00015288,2]
[396511389,1765021840835,-150.0,0.00015288,2]
[396511390,1765021840845,-150.0,0.00015288,2]
[396511391,1765021840854,-150.0,0.00015288,2]
[396511392,1765021840863,-150.0,0.00015288,2]
[396511393,1765021840872,-150.0,0.00015288,2]
[396511394,1765021840882,-150.0,0.00015288,2]
[396511395,1765021840891,-150.0,0.00015288,2]
[396511396,1765021840901,-20064.62,0.0001531,2]
[396511397,1765021840910,-19999.99,0.0001531,2]
[396511398,1765021840919,-2255.51,0.0001531,2]
[396511399,1765021840928,-500.0,0.00015315,2]
[396511400,1765021840938,-150.0,0.00015325,2]
[396511401,1765021840947,-150.0,0.00015329,2]
[396511402,1765021840956,-150.0,0.00015335,2]
[396511403,1765021840966,-1116.61,0.00015357,2]
[396511404,1765021840976,-150.0,0.00015358,2]
[396511405,1765021840986,-150.0,0.00015362,2]
[396511406,1765021840997,-150.0,0.00015365,2]
[396511407,1765021841007,-150.0,0.00015369,2]
[396511408,1765021841017,-150.0,0.00015371,2]
[396511409,1765021841026,-150.0,0.00015382,2]
[396511410,1765021841036,-150.0,0.00015394,2]
[396511411,1765021841045,-1000.0,0.00015398,3]
[396511412,1765021841055,-150.0,0.00015398,2]
[396511413,1765021841065,-551.0,0.00015402,2]
[396511414,1765021841074,-150.0,0.00015412,2]
[396511415,1765021841084,-381.11,0.00015418,2]
[396511416,1765021841093,-150.0,0.00015429,2]
[396511417,1765021841102,-150.0,0.00015429,2]
[396511418,1765021841112,-150.0,0.00015435,2]
[396511419,1765021841123,-150.0,0.00015442,2]
[396511420,1765021841132,-2068.49,0.00015442,2]
[396511421,1765021841143,-780.19962286,0.00015447,2]
[396511422,1765021841152,-150.0,0.00015449,2]
[396511423,1765021841161,-789.0,0.00015451,2]
[396511424,1765021841171,-150.0,0.00015453,2]
[396511425,1765021841181,-9875.46460108,0.00015457,2]
[396511426,1765021841190,-9722.60098937,0.00015457,2]
[396511427,1765021841200,-150.0,0.00015472,2]
[396511428,1765021841210,-150.0,0.00015476,2]
[396511429,1765021841220,-150.0,0.00015476,2]
[396511430,1765021841229,-311.1,0.00015487,2]
[396511431,1765021841238,-578.20924308,0.00015487,2]
[396511432,1765021841247,-500.0,0.00015487,2]
[396511433,1765021841258,-250.0,0.00015487,2]
[396511434,1765021841267,-500.0,0.00015487,2]
[396511435,1765021841276,-250.0,0.00015487,2]
[396511436,1765021841286,-500.0,0.00015487,2]
[396511437,1765021841299,-250.0,0.00015487,2]
[396511438,1765021841309,-250.0,0.00015487,2]
[396511439,1765021841319,-250.0,0.00015487,2]
[396511440,1765021841329,-250.0,0.00015487,2]
[396511441,1765021841339,-250.0,0.00015487,2]
[396511442,1765021841349,-250.0,0.00015487,2]
[396511443,1765021841359,-693.3919763,0.00015487,2]
[396511444,1765021841369,-250.0,0.00015487,2]
[396511445,1765021841379,-250.0,0.00015487,2]
[396511446,1765021841389,-250.0,0.00015487,2]
[396511447,1765021841399,-200.0,0.00015487,2]
[396511448,1765021841409,-207.4,0.00015487,2]
[396511449,1765021841419,-215.0738,0.00015487,2]
[396511450,1765021841430,-500.0,0.00015487,2]
[396511451,1765021841441,-294.26754531,0.00015487,2]
[396511452,1765021841453,-500.0,0.00015487,2]
[396511453,1765021841466,-500.0,0.00015487,2]
[396511454,1765021841476,-500.0,0.00015487,2]
[396511455,1765021841486,-511.18723417,0.00015487,2]
[396511456,1765021841496,-500.0,0.00015487,2]
[396511457,1765021841505,-500.0,0.00015487,2]
[396511458,1765021841515,-500.0,0.00015487,2]
[396511459,1765021841525,-151.0,0.00015487,2]
[396511460,1765021841535,-500.0,0.00015487,2]
[396511461,1765021841544,-500.0,0.00015487,2]
[396511462,1765021841554,-500.0,0.00015487,2]
[396511463,1765021841563,-542.48471571,0.00015487,2]
[396511464,1765021841572,-397.54712625,0.00015487,2]
[396511465,1765021841582,-1000.0,0.00015487,2]
[396511466,1765021841592,-1000.0,0.00015487,2]
[396511467,1765021841601,-1000.0,0.00015487,2]
[396511468,1765021841615,-1000.0,0.00015487,2]
[396511469,1765021841625,-1000.0,0.00015487,2]
[396511470,1765021841637,-1000.0,0.00015487,2]
[396511471,1765021841647,-1000.0,0.00015487,2]
[396511472,1765021841656,-1000.0,0.00015487,2]
[396511473,1765021841666,-1000.0,0.00015487,2]
[396511474,1765021841679,-1000.0,0.00015487,2]
[396511475,1765021841690,-250.0,0.00015487,2]
[396511476,1765021841699,-250.0,0.00015487,2]
[396511477,1765021841709,-250.0,0.00015487,2]
[396511478,1765021841718,-250.0,0.00015487,2]
[396511479,1765021841727,-186.83336823,0.00015487,2]